lending/lending_fUSD_20250411
["ID","MTS","AMOUNT","RATE_DAILY","PERIOD"]
[357729006,1744393838702,-299.99,0.00025786,12]
[357729008,1744393838712,-9969.45,0.00025786,2]
[357729010,1744393838721,-150.99,0.00025786,2]
[357729012,1744393838731,-166.60539821,0.00025804,2]
[357729014,1744393838741,-200.0,0.00025807,2]
[357729016,1744393838751,-200.0,0.00025807,2]
[357729018,1744393838762,-180.0,0.0002589,2]
[357729020,1744393838772,-577.68711718,0.0002599,2]
[357729022,1744393838781,-4351.82820938,0.00026,2]
[357729024,1744393838791,-3058.54947289,0.00026,2]
[357729026,1744393838800,-398.14118612,0.00026,2]
[357729028,1744393838810,-500.0,0.00026,3]
[357729030,1744393838819,-386.3,0.00026027,2]
[357729032,1744393838829,-25713.433279,0.000264,2]
[357729033,1744393838839,-500.0,0.000264,2]
[357729035,1744393838848,-166.67,0.00026422,2]
[357729037,1744393838857,-166.18,0.00026485,2]
[357729039,1744393838867,-166.66,0.00026633,2]
[357729041,1744393838876,-300.0,0.00026761,2]
[357729043,1744393838885,-1048.667,0.000268,2]
[357729045,1744393838894,-571.0,0.000268,2]
[357729046,1744393838907,-1600.366,0.000268,2]
[357729048,1744393838915,-3961.0,0.000268,2]
[357729050,1744393838924,-152.0,0.000268,2]
[357729052,1744393838934,-998.45,0.00026849,2]
[357729053,1744393838943,-793.0,0.00027,2]
[357729054,1744393838953,-450.0,0.00027,2]
[357729055,1744393838962,-3181.89643117,0.0002716,2]
[357729056,1744393838972,-3775.5128757,0.0002716,2]
[357729057,1744393838981,-180.0,0.00027185,2]
[357729058,1744393838990,-1000.0,0.0002725,2]
[357729059,1744393838999,-974.61994018,0.00027273,12]
[357729060,1744393839008,-1448.08510912,0.0002737,2]
[357729061,1744393839018,-836.72280183,0.0002737,2]
[357729062,1744393839027,-1000.0,0.0002737,2]
[357729063,1744393839036,-500.0,0.0002737,2]
[357729064,1744393839046,-1000.0,0.0002737,2]
[357729065,1744393839055,-500.0,0.0002737,2]
[357729066,1744393839065,-1000.0,0.0002737,2]
[357729067,1744393839075,-386.3,0.00027397,2]
[357729068,1744393839086,-936.30014889,0.00027397,2]
[357729069,1744393839098,-936.30014889,0.00027397,2]
[357729070,1744393839113,-936.30014889,0.00027397,2]
[357729071,1744393839124,-936.30014889,0.00027397,2]
[357729072,1744393839134,-936.30014889,0.00027397,2]
[357729073,1744393839144,-936.30014889,0.00027397,2]
[357729074,1744393839161,-936.30014889,0.00027397,2]
[357729075,1744393839173,-936.30014889,0.00027397,2]
[357729076,1744393839184,-936.30014889,0.00027397,2]
[357729077,1744393839194,-936.30014889,0.00027397,2]
[357729078,1744393839204,-936.30014889,0.00027397,2]
[357729080,1744393839214,-936.30014889,0.00027397,2]
[357729081,1744393839224,-936.30014889,0.00027397,2]
[357729082,1744393839235,-936.30014889,0.00027397,2]
[357729083,1744393839245,-936.30014889,0.00027397,2]
[357729085,1744393839254,-936.30014889,0.00027397,2]
[357729087,1744393839264,-936.30014889,0.00027397,2]
[357729088,1744393839274,-936.30014889,0.00027397,2]
[357729090,1744393839284,-936.30014889,0.00027397,2]
[357729091,1744393839294,-936.30014889,0.00027397,2]
[357729092,1744393839304,-936.30014889,0.00027397,2]
[357729093,1744393839314,-936.30014889,0.00027397,2]
[357729094,1744393839326,-936.30014889,0.00027397,2]
[357729095,1744393839336,-936.30014889,0.00027397,2]
[357729096,1744393839345,-936.30014889,0.00027397,2]
[357729097,1744393839355,-936.30014889,0.00027397,2]
[357729098,1744393839364,-936.30014889,0.00027397,2]
[357729099,1744393839374,-936.30014889,0.00027397,2]
[357729100,1744393839384,-936.30014889,0.00027397,2]
[357729101,1744393839394,-936.30014889,0.00027397,2]
[357729102,1744393839407,-936.30014889,0.00027397,2]
[357729103,1744393839418,-936.30014889,0.00027397,2]
[357729104,1744393839427,-936.30014889,0.00027397,2]
[357729105,1744393839437,-936.30014889,0.00027397,2]
[357729106,1744393839447,-936.30014889,0.00027397,2]
[357729107,1744393839458,-936.30014889,0.00027397,2]
[357729108,1744393839469,-936.30014889,0.00027397,2]
[357729109,1744393839479,-936.30014889,0.00027397,2]
[357729110,1744393839488,-936.30014889,0.00027397,2]
[357729111,1744393839498,-936.30014889,0.00027397,2]
[357729112,1744393839508,-936.30014889,0.00027397,2]
[357729114,1744393839518,-936.30014889,0.00027397,2]
[357729115,1744393839527,-936.30014889,0.00027397,2]
[357729116,1744393839537,-936.30014889,0.00027397,2]
[357729117,1744393839546,-936.30014889,0.00027397,2]
[357729118,1744393839555,-936.30014889,0.00027397,2]
[357729119,1744393839565,-936.30014889,0.00027397,2]
[357729120,1744393839575,-936.30014889,0.00027397,2]
[357729121,1744393839584,-936.30014889,0.00027397,2]
[357729122,1744393839594,-936.30014889,0.00027397,2]
[357729123,1744393839603,-936.30014889,0.00027397,2]
[357729124,1744393839613,-936.30014889,0.00027397,2]
[357729125,1744393839623,-936.30014889,0.00027397,2]
[357729126,1744393839632,-936.30014889,0.00027397,2]
[357729127,1744393839642,-936.30014889,0.00027397,2]
[357729128,1744393839653,-936.30014889,0.00027397,2]
[357729129,1744393839663,-936.30014889,0.00027397,2]
[357729130,1744393839673,-936.30014889,0.00027397,2]
[357729131,1744393839684,-936.30014889,0.00027397,2]
[357729132,1744393839693,-936.30014889,0.00027397,2]
[357729133,1744393839704,-936.30014889,0.00027397,2]
[357729134,1744393839713,-936.30014889,0.00027397,2]
[357729135,1744393839723,-936.30014889,0.00027397,2]
[357729136,1744393839733,-936.30014889,0.00027397,2]
[357729137,1744393839742,-936.30014889,0.00027397,2]
[357729138,1744393839752,-936.30014889,0.00027397,2]
[357729139,1744393839762,-936.30014889,0.00027397,2]
[357729140,1744393839771,-936.30014889,0.00027397,2]
[357729141,1744393839782,-936.30014889,0.00027397,2]
[357729142,1744393839791,-936.30014889,0.00027397,2]
[357729143,1744393839802,-936.30014889,0.00027397,2]
[357729144,1744393839812,-936.30014889,0.00027397,2]
[357729145,1744393839822,-936.30014889,0.00027397,2]
[357729146,1744393839831,-936.30014889,0.00027397,2]
[357729147,1744393839841,-936.30014889,0.00027397,2]
[357729148,1744393839851,-936.30014889,0.00027397,2]
[357729149,1744393839860,-936.30014889,0.00027397,2]
[357729150,1744393839870,-936.30014889,0.00027397,2]
[357729151,1744393839880,-936.30014889,0.00027397,2]
[357729152,1744393839890,-936.30014889,0.00027397,2]
[357729153,1744393839901,-936.30014889,0.00027397,2]
[357729154,1744393839911,-936.30014889,0.00027397,2]
[357729155,1744393839920,-936.30014889,0.00027397,2]
[357729156,1744393839930,-936.30014889,0.00027397,2]
[357729157,1744393839940,-936.30014889,0.00027397,2]
[357729158,1744393839951,-936.30014889,0.00027397,2]
[357729159,1744393839962,-936.30014889,0.00027397,2]
[357729160,1744393839972,-936.30014889,0.00027397,2]
[357729161,1744393839982,-936.30014889,0.00027397,2]
[357729162,1744393839992,-500.049,0.00027397,2]
[357729163,1744393840001,-3041.23,0.00027397,2]
[357729164,1744393840011,-919.58,0.00027397,15]
[357729165,1744393840021,-726.0,0.000274,2]
[357729166,1744393840033,-723.09397951,0.00027425,2]
[357729167,1744393840043,-200.0,0.00027425,2]
[357729168,1744393840052,-1074.69,0.00027444,2]
[357729169,1744393840218,-166.66,0.00027611,2]
[357729170,1744393840229,-200.0,0.00027699,2]
[357729171,1744393840239,-166.18,0.00027809,2]
[357729173,1744393840248,-200.0,0.00027976,2]
[357729175,1744393840258,-1000.0,0.00028,2]
[357729176,1744393840268,-1000.0,0.00028,2]
[357729177,1744393840278,-1000.0,0.00028,2]
[357729178,1744393840287,-234.0,0.00028,2]
[357729179,1744393840296,-3000.0,0.00028,10]
[357729181,1744393840306,-300.0,0.0002813,2]
[357729183,1744393840315,-200.0,0.00028256,2]
[357729185,1744393840326,-19030.3753608,0.0002829,3]
[357729187,1744393840335,-1475.67,0.000283,2]
[357729189,1744393840345,-519.31,0.000283,2]
[357729191,1744393840354,-173.3,0.000283,2]
[357729193,1744393840364,-282.53,0.000283,2]
[357729195,1744393840373,-246.43,0.000283,2]
[357729197,1744393840383,-217.96902583,0.00028378,2]
[357729199,1744393840393,-434.62863859,0.00028378,2]
[357729201,1744393840405,-166.67,0.00028436,2]
[357729204,1744393840414,-200.0,0.00028539,2]
[357729207,1744393840424,-893.83501104,0.00028667,2]
[357729209,1744393840433,-250.0,0.00028721,2]
[357729211,1744393840442,-151.0,0.0002874,7]
[357729213,1744393840452,-151.0,0.0002874,7]
[357729215,1744393840461,-151.0,0.0002874,7]
[357729217,1744393840471,-151.0,0.0002874,7]
[357729218,1744393840480,-151.0,0.0002874,7]
[357729220,1744393840490,-10482.38050556,0.0002875,2]
[357729223,1744393840505,-1189.0977,0.0002875,2]
[357729226,1744393840523,-372.15258295,0.0002875,2]
[357729228,1744393840534,-1000.58518104,0.0002875,2]
[357729230,1744393840545,-1970.05700317,0.0002875,2]
[357729232,1744393840554,-155.0,0.00028767,5]
[357729234,1744393840564,-386.3,0.00028767,2]
[357729236,1744393840574,-3041.23,0.00028767,2]
[357729238,1744393840583,-8239.66704984,0.0002899,3]
[357729274,1744393841082,-1112.76,0.0002899,3]
[357729281,1744393841151,-513.95,0.00024473,2]
[357729283,1744393841162,-5397.5121412,0.0002899,3]
[357729285,1744393841174,-4280.43616976,0.0002899,3]
[357729287,1744393841188,-180.0,0.00028997,2]
[357729290,1744393841199,-5258.62571302,0.00029,2]
[357729291,1744393841209,-8233.53863792,0.00029,2]
[357729293,1744393841219,-500.0,0.00029,2]
[357729295,1744393841230,-166.18,0.00029134,2]
[357729297,1744393841239,-1521.72314872,0.00029587,5]
[357729300,1744393841259,-480.96685128,0.00029587,5]
[357729302,1744393841269,-150.0,0.00029702,2]
[357729304,1744393841279,-150.0,0.00029702,2]
[357729306,1744393841288,-150.0,0.00029706,2]
[357729308,1744393841297,-1074.69,0.00029708,2]
[357729310,1744393841307,-150.0,0.0002971,2]
[357729312,1744393841316,-150.0,0.00029711,2]
[357729314,1744393841324,-150.0,0.00029713,2]
[357729316,1744393841334,-150.0,0.00029732,2]
[357729317,1744393841343,-150.0,0.00029736,2]
[357729319,1744393841353,-150.0,0.00029741,2]
[357729321,1744393841362,-150.0,0.00029743,2]
[357729324,1744393841372,-150.0,0.00029747,2]
[357729325,1744393841381,-150.0,0.00029753,2]
[357729327,1744393841391,-249.93328278,0.00029754,2]
[357729330,1744393841405,-150.0,0.00029755,2]
[357729331,1744393841415,-150.0,0.00029755,2]
[357729333,1744393841424,-150.0,0.00029755,2]
[357729335,1744393841434,-150.0,0.00029755,2]
[357729337,1744393841444,-150.0,0.00029764,2]
[357729339,1744393841453,-150.0,0.00029766,2]
[357729341,1744393841462,-150.0,0.00029768,2]
[357729343,1744393841472,-150.0,0.0002977,2]
[357729345,1744393841482,-150.0,0.0002977,2]
[357729347,1744393841491,-150.0,0.00029771,2]
[357729349,1744393841501,-150.0,0.00029772,2]
[357729351,1744393841510,-150.0,0.00029773,2]
[357729353,1744393841519,-150.0,0.00029778,2]
[357729355,1744393841529,-150.0,0.0002978,2]
[357729357,1744393841538,-150.0,0.00029782,2]
[357729359,1744393841548,-150.0,0.00029784,2]
[357729361,1744393841557,-150.0,0.00029786,2]
[357729363,1744393841567,-150.0,0.0002979,2]
[357729365,1744393841576,-150.0,0.00029792,2]
[357729367,1744393841585,-150.0,0.00029795,2]
[357729369,1744393841595,-150.0,0.00029798,2]
[357729371,1744393841605,-3961.0,0.000298,2]
[357729380,1744393841816,-152.0,0.000298,2]
[357729381,1744393841826,-150.0,0.000298,2]
[357729382,1744393841836,-150.0,0.00029801,2]
[357729383,1744393841845,-150.0,0.00029801,2]
[357729384,1744393841855,-85.36805543,0.00029807,2]
[357729385,1744393841867,-64.63194457,0.00029807,2]
[357729386,1744393841877,-150.0,0.0002981,2]
[357729387,1744393841886,-150.0,0.0002981,2]
[357729388,1744393841895,-150.0,0.00029812,2]
[357729389,1744393841906,-150.0,0.00029813,2]
[357729390,1744393841915,-150.0,0.00029813,2]
[357729391,1744393841925,-150.0,0.00029814,2]
[357729392,1744393841934,-150.0,0.00029814,2]
[357729393,1744393841944,-150.0,0.00029815,2]
[357729394,1744393841953,-150.0,0.00029817,2]
[357729395,1744393841963,-683.01882305,0.0002982,2]
[357729396,1744393841972,-150.0,0.00029824,2]
[357729397,1744393841982,-150.0,0.00029825,2]
[357729398,1744393841991,-150.0,0.00029827,2]
[357729399,1744393842001,-150.0,0.00029829,2]
[357729400,1744393842010,-150.0,0.00029833,2]
[357729401,1744393842020,-150.0,0.00029836,2]
[357729402,1744393842029,-150.0,0.00029838,2]
[357729403,1744393842039,-150.0,0.00029838,2]
[357729404,1744393842049,-150.0,0.00029839,2]
[357729405,1744393842058,-150.0,0.0002984,2]
[357729406,1744393842067,-150.0,0.00029842,2]
[357729407,1744393842077,-8.82450657,0.00029844,5]
[357729408,1744393842089,-491.17549343,0.00029844,5]
[357729409,1744393842098,-150.0,0.00029845,2]
[357729410,1744393842107,-144.42890667,0.00029846,2]
[357729411,1744393842119,-5.57109333,0.00029846,2]
[357729412,1744393842132,-150.0,0.00029854,2]
[357729413,1744393842141,-150.0,0.00029857,2]
[357729414,1744393842152,-150.0,0.0002986,2]
[357729415,1744393842162,-28.733381,0.00029863,2]
[357729417,1744393842175,-121.266619,0.00029863,2]
[357729418,1744393842186,-150.0,0.00029864,2]
[357729419,1744393842197,-150.0,0.00029865,2]
[357729420,1744393842208,-150.0,0.00029865,2]
[357729421,1744393842217,-150.0,0.00029866,2]
[357729422,1744393842227,-78.48338095,0.00029866,2]
[357729449,1744393843629,-150.0,0.00029721,2]
[357729450,1744393843644,-150.0,0.00029721,2]
[357729451,1744393843660,-150.0,0.00029722,2]
[357729452,1744393843676,-150.0,0.00029734,2]
[357729453,1744393843690,-150.0,0.00029743,2]
[357729454,1744393843705,-150.0,0.00029747,2]
[357729455,1744393843721,-150.0,0.0002975,2]
[357729456,1744393843736,-150.0,0.00029754,2]
[357729457,1744393843750,-150.0,0.00029754,2]
[357729458,1744393843765,-150.0,0.00029768,2]
[357729459,1744393843780,-150.0,0.00029782,2]
[357729460,1744393843795,-150.0,0.00029784,2]
[357729461,1744393843810,-150.0,0.00029791,2]
[357729462,1744393843826,-150.0,0.00029792,2]
[357729463,1744393843841,-150.0,0.00029796,2]
[357729464,1744393843856,-150.0,0.00029803,2]
[357729465,1744393843872,-150.0,0.00029803,2]
[357729466,1744393843887,-150.0,0.00029804,2]
[357729467,1744393843902,-150.0,0.00029807,2]
[357729468,1744393843916,-150.0,0.00029821,2]
[357729469,1744393843932,-150.0,0.00029824,2]
[357729470,1744393843947,-150.0,0.00029831,2]
[357729471,1744393843963,-150.0,0.00029835,2]
[357729472,1744393843979,-150.0,0.00029837,2]
[357729473,1744393843995,-150.0,0.0002984,2]
[357729474,1744393844010,-150.0,0.00029842,2]
[357729475,1744393844024,-150.0,0.00029848,2]
[357729476,1744393844040,-150.0,0.0002985,2]
[357729477,1744393844055,-71.51661905,0.00029866,2]
[357729478,1744393844070,-150.0,0.00029868,2]
[357729479,1744393844085,-1000.0,0.0002987,2]
[357729480,1744393844101,-500.0,0.0002987,2]
[357729481,1744393844117,-150.0,0.00029873,2]
[357729482,1744393844133,-150.0,0.00029874,2]
[357729483,1744393844148,-150.0,0.00029876,2]
[357729484,1744393844165,-150.0,0.00029877,2]
[357729485,1744393844180,-150.0,0.00029877,2]
[357729486,1744393844195,-150.0,0.00029877,2]
[357729487,1744393844210,-150.0,0.00029878,2]
[357729488,1744393844225,-150.0,0.00029884,2]
[357729489,1744393844243,-150.0,0.00029887,2]
[357729490,1744393844256,-150.0,0.00029889,2]
[357729491,1744393844266,-150.0,0.00029893,2]
[357729492,1744393844276,-150.0,0.00029894,2]
[357729493,1744393844286,-150.0,0.00029894,2]
[357729494,1744393844296,-226.70183528,0.000299,2]
[357729495,1744393844306,-150.0,0.00029902,2]
[357729496,1744393844315,-150.0,0.00029902,2]
[357729497,1744393844325,-150.0,0.00029903,2]
[357729498,1744393844643,-150.0,0.00029904,2]
[357729499,1744393844687,-150.0,0.00029905,2]
[357729500,1744393844697,-150.0,0.0002991,2]
[357729501,1744393844706,-150.0,0.0002991,2]
[357729502,1744393844716,-150.0,0.00029913,2]
[357729503,1744393844725,-150.0,0.00029915,2]
[357729504,1744393844734,-150.0,0.00029915,2]
[357729505,1744393844743,-150.0,0.00029916,2]
[357729506,1744393844753,-150.0,0.00029917,2]
[357729507,1744393844762,-150.0,0.00029917,2]
[357729508,1744393844772,-150.0,0.00029922,2]
[357729509,1744393844782,-150.0,0.00029923,2]
[357729510,1744393844791,-150.0,0.00029924,2]
[357729511,1744393844801,-150.0,0.00029924,2]
[357729512,1744393844811,-150.0,0.0002993,2]
[357729513,1744393844821,-150.0,0.00029932,2]
[357729514,1744393844831,-150.0,0.00029932,2]
[357729515,1744393844840,-150.0,0.00029932,2]
[357729516,1744393844850,-150.0,0.00029933,2]
[357729517,1744393844859,-150.0,0.00029934,2]
[357729518,1744393844869,-150.0,0.00029947,2]
[357729519,1744393844879,-150.0,0.00029947,2]
[357729520,1744393844888,-150.0,0.00029949,2]
[357729521,1744393844898,-150.0,0.0002995,2]
[357729522,1744393844910,-150.0,0.00029951,2]
[357729523,1744393844920,-150.0,0.00029951,2]
[357729524,1744393844930,-150.0,0.00029958,2]
[357729525,1744393844939,-150.0,0.00029958,2]
[357729526,1744393844948,-150.0,0.00029959,2]
[357729527,1744393844958,-150.0,0.00029962,2]
[357729528,1744393844968,-150.0,0.00029962,2]
[357729529,1744393844978,-150.0,0.00029963,2]
[357729530,1744393844988,-150.0,0.00029964,2]
[357729531,1744393844998,-150.0,0.00029967,2]
[357729532,1744393845008,-150.0,0.00029967,2]
[357729533,1744393845018,-150.0,0.00029967,2]
[357729534,1744393845028,-150.0,0.00029968,2]
[357729535,1744393845038,-1000.0,0.0002997,2]
[357729536,1744393845047,-305.93656017,0.0002997,2]
[357729537,1744393845060,-194.06343983,0.0002997,2]
[357729538,1744393845069,-500.0,0.00029973,5]
[357729539,1744393845079,-151.0,0.0002998,7]
[357729540,1744393845089,-151.0,0.0002998,7]
[357729541,1744393845098,-151.0,0.0002998,7]
[357729542,1744393845112,-151.0,0.0002998,7]
[357729543,1744393845122,-151.0,0.0002998,7]
[357729544,1744393845131,-151.0,0.0002998,7]
[357729545,1744393845141,-151.0,0.0002998,7]
[357729546,1744393845153,-151.0,0.0002998,7]
[357729547,1744393845162,-14883.947688,0.0002998,3]
[357729548,1744393845174,-568.94402125,0.0002998,3]
[357729549,1744393845200,-150.0,0.00029764,2]
[357729551,1744393845210,-150.0,0.00029831,2]
[357729552,1744393845220,-15167.19361434,0.0002998,3]
[357729554,1744393845232,-7440.66539801,0.0002998,3]
[357729556,1744393845241,-151.64,0.0002998,2]
[357729557,1744393845250,-19030.3753608,0.00029989,3]
[357729558,1744393845260,-150.0,0.00029989,2]
[357729560,1744393845270,-74574.0,0.0002999,2]
[357729561,1744393845280,-95151.876804,0.0002999,3]
[357729563,1744393845290,-54839.4278995,0.0002999,3]
[357729564,1744393845300,-150.0,0.0002999,2]
[357729565,1744393845309,-151.64,0.0002999,2]
[357729566,1744393845319,-500.0,0.00029999,2]
[357729567,1744393845328,-263.96318136,0.00029999,2]
[357729568,1744393845337,-500.0,0.00029999,2]
[357729569,1744393845346,-500.0,0.00029999,2]
[357729570,1744393845355,-500.0,0.00029999,2]
[357729571,1744393845364,-500.0,0.00029999,2]
[357729572,1744393845373,-500.0,0.00029999,2]
[357729574,1744393845382,-500.0,0.00029999,2]
[357729575,1744393845391,-500.0,0.00029999,2]
[357729577,1744393845403,-500.0,0.00029999,2]
[357729579,1744393845412,-500.0,0.00029999,2]
[357729581,1744393845421,-500.0,0.00029999,2]
[357729583,1744393845430,-500.0,0.00029999,2]
[357729584,1744393845439,-500.0,0.00029999,2]
[357729586,1744393845447,-500.0,0.00029999,2]
[357729587,1744393845456,-184.9761671,0.00029999,2]
[357729588,1744393845468,-500.0,0.00029999,2]
[357729589,1744393845478,-500.0,0.00029999,2]
[357729590,1744393845487,-500.0,0.00029999,2]
[357729591,1744393845497,-500.0,0.00029999,2]
[357729592,1744393845506,-402.6719543,0.00029999,2]
[357729593,1744393845515,-500.0,0.00029999,2]
[357729594,1744393845524,-2070.55174904,0.0003,3]
[357729595,1744393845534,-3000.0,0.0003,7]
[357729596,1744393845543,-1000.0,0.0003,6]
[357729597,1744393845553,-6034.10997838,0.0003,2]
[357729598,1744393845562,-210.72,0.0003,2]
[357729599,1744393845572,-149702.06938534,0.0003,2]
[357729600,1744393845582,-48635.91014652,0.0003,2]
[357729601,1744393845592,-150.0,0.0003,2]
[357729602,1744393845601,-194.018715,0.0003,7]
[357729603,1744393845611,-7120.0,0.0003,2]
[357729604,1744393845621,-584.4423,0.0003,2]
[357729605,1744393845630,-19030.3753608,0.00030127,3]
[357729606,1744393845641,-386.3,0.00030136,2]
[357729607,1744393845653,-3041.23,0.00030137,2]
[357729608,1744393845663,-610.0,0.00030137,2]
[357729609,1744393845673,-1000.0,0.00030278,2]
[357729610,1744393845683,-519.31,0.000303,2]
[357729611,1744393845692,-893.83501095,0.00030357,2]
[357729612,1744393845702,-166.18,0.00030458,2]
[357729613,1744393845712,-18279.8092998,0.0003049,3]
[357729614,1744393845722,-6407.34,0.000305,2]
[357729615,1744393845731,-3678.23,0.000308,2]
[357729616,1744393845741,-14713.71,0.000308,2]
[357729617,1744393845751,-6575.08,0.000308,2]
[357729618,1744393845760,-180.0,0.0003081,2]
[357729619,1744393845776,-550.0,0.00031,2]
[357729620,1744393845794,-180.0,0.00031068,2]
[357729621,1744393845803,-151.64,0.0003141,2]
[357729622,1744393845813,-19030.3753608,0.0003142,3]
[357729623,1744393845823,-18279.8092998,0.0003142,3]
[357729624,1744393845832,-18857.26189077,0.0003143,4]
[357729625,1744393845842,-386.3,0.00031506,2]
[357729626,1744393845852,-3041.23,0.00031507,2]
[357729627,1744393845861,-151.0,0.00031739,7]
[357729628,1744393845871,-151.0,0.00031739,7]
[357729629,1744393845880,-151.0,0.00031739,7]
[357729630,1744393845891,-151.0,0.00031739,7]
[357729632,1744393845900,-151.0,0.00031739,7]
[357729634,1744393845911,-166.18,0.00031782,2]
[357729636,1744393845920,-500.0,0.0003183,5]
[357729638,1744393845930,-500.0,0.0003183,5]
[357729640,1744393845939,-1000.0,0.00031879,5]
[357729642,1744393845949,-1074.69,0.00031972,2]
[357729644,1744393845958,-298.68716809,0.00031984,2]
[357729645,1744393845967,-956.82688034,0.00031996,2]
[357729647,1744393845977,-1053.82063973,0.00032,2]
[357729649,1744393845994,-893.83501095,0.00032048,2]
[357729650,1744393846003,-171.2,0.000323,2]
[357729652,1744393846013,-340.78,0.00032315,30]
[357729654,1744393846023,-171.2,0.00032333,2]
[357729656,1744393846034,-230.072,0.00032358,5]
[357729658,1744393846044,-171.2,0.00032367,2]
[357729660,1744393846054,-171.2,0.000324,2]
[357729662,1744393846063,-500.0,0.000325,42]
[357729665,1744393846074,-4799.46737687,0.00032547,2]
[357729667,1744393846083,-180.0,0.00032622,2]
[357729670,1744393846092,-2000.0,0.00032629,5]
[357729672,1744393846103,-998.45,0.00032646,2]
[357729675,1744393846112,-19030.3753608,0.0003279,3]
[357729678,1744393846127,-3961.0,0.000328,2]
[357729681,1744393846136,-152.0,0.000328,2]
[357729683,1744393846146,-2186.84717345,0.000328,2]
[357729686,1744393846157,-500.0,0.000328,30]
[357729689,1744393846167,-18279.8092998,0.00032867,3]
[357729691,1744393846176,-151.0,0.00032876,7]
[357729694,1744393846186,-386.3,0.00032876,2]
[357729697,1744393846198,-205.0,0.00032876,2]
[357729699,1744393846209,-3041.23,0.00032877,2]
[357729701,1744393846218,-440.59040686,0.000329,2]
[357729704,1744393846228,-726.74785001,0.000329,2]
[357729706,1744393846237,-151.0,0.0003297,7]
[357729708,1744393846247,-151.937594,0.0003297,7]
[357729710,1744393846256,-500.0,0.00032973,5]
[357729712,1744393846266,-162.79730242,0.00032973,5]
[357729714,1744393846275,-500.0,0.00032973,5]
[357729716,1744393846285,-500.0,0.00032973,5]
[357729718,1744393846294,-500.0,0.00032973,5]
[357729720,1744393846303,-57091.1260824,0.0003299,3]
[357729722,1744393846313,-54839.4278995,0.0003299,3]
[357729723,1744393846323,-1000.0,0.00033,2]
[357729724,1744393846332,-1000.0,0.00033,2]
[357729725,1744393846342,-248.49475644,0.00033,2]
[357729726,1744393846352,-249.15405672,0.00033,7]
[357729727,1744393846362,-1721.1,0.00033,2]
[357729728,1744393846371,-1845.9502708,0.00033,34]
[357729729,1744393846381,-1508.83920272,0.00033,2]
[357729730,1744393846390,-150.194,0.00033,30]
[357729731,1744393846402,-100555.12527264,0.00033,2]
[357729732,1744393846412,-151.0,0.00033,7]
[357729733,1744393846421,-151.0,0.00033,7]
[357729734,1744393846431,-150.0,0.00033,2]
[357729735,1744393846441,-600.0,0.00033,2]
[357729736,1744393846451,-500.0,0.0003315,10]
[357729737,1744393846462,-200.0,0.00033151,2]
[357729738,1744393846473,-19030.3753608,0.0003319,3]
[357729739,1744393846483,-18279.8092998,0.0003319,3]
[357729740,1744393846493,-46293.14500958,0.000332,2]
[357729741,1744393846503,-1000.0,0.00033306,2]
[357729742,1744393846513,-500.0,0.00033424,10]
[357729743,1744393846523,-19030.3753608,0.0003359,3]
[357729744,1744393846535,-18279.8092998,0.0003359,3]
[357729745,1744393846549,-208.72,0.000336,2]
[357729746,1744393846560,-3678.23,0.000336,2]
[357729747,1744393846573,-14713.71,0.000336,2]